fUST/lending_fUST_20250930
["ID","MTS","AMOUNT","RATE_DAILY","PERIOD"]
[388459572,1759177305364,-480.0,0.00022251,2]
[388459573,1759177305392,-480.0,0.00022251,2]
[388459574,1759177305549,-480.0,0.00022251,2]
[388459575,1759177305584,-480.0,0.00022251,2]
[388459576,1759177305621,-480.0,0.00022251,2]
[388459577,1759177305657,-480.0,0.00022251,2]
[388459578,1759177305696,-857.24,0.00022251,2]
[388459579,1759177305732,-480.0,0.00022251,2]
[388459580,1759177305768,-906.71,0.00022251,2]
[388459581,1759177305800,-480.0,0.00022251,2]
[388459582,1759177305834,-232.11,0.00022251,2]
[388459583,1759177305910,-247.89,0.00022251,2]
[388459584,1759177305942,-480.0,0.00022252,2]
[388459585,1759177305974,-480.0,0.00022252,2]
[388459586,1759177306007,-500.0,0.00022252,2]
[388459587,1759177306042,-312.59711661,0.00022252,2]
[388459588,1759177306076,-733.88,0.00022252,2]
[388459589,1759177306110,-480.0,0.00022252,2]
[388459590,1759177306145,-480.0,0.00022252,2]
[388459591,1759177306180,-480.0,0.00022252,2]
[388459592,1759177306218,-682.41,0.00022252,2]
[388459593,1759177306329,-1108.82,0.00022252,2]
[388459594,1759177306360,-480.0,0.00022252,2]
[388459595,1759177306393,-480.0,0.00022252,2]
[388459596,1759177306424,-480.0,0.00022252,2]
[388459597,1759177306453,-224.01815645,0.00022252,2]
[388459598,1759177306485,-500.0,0.00022252,2]
[388459599,1759177306515,-330.03841691,0.00022252,2]
[388459600,1759177306544,-480.0,0.00022252,2]
[388459601,1759177306574,-480.0,0.00022252,2]
[388459602,1759177306602,-394.25685328,0.00022252,2]
[388459603,1759177306747,-85.74314672,0.00022252,2]
[388459604,1759177306780,-518.15,0.00022252,2]
[388459605,1759177306809,-480.0,0.00022252,2]
[388459606,1759177306840,-480.0,0.00022252,2]
[388459607,1759177306869,-480.0,0.00022252,2]
[388459608,1759177306900,-583.31,0.00022252,2]
[388459609,1759177306931,-480.0,0.00022252,2]
[388459610,1759177307259,-4705.43,0.00022252,2]
[388459611,1759177307423,-589.15,0.00022252,2]
[388459612,1759177307453,-480.0,0.00022252,2]
[388459613,1759177307485,-480.0,0.00022252,2]
[388459614,1759177307517,-480.0,0.00022252,2]
[388459615,1759177307548,-959.97,0.00022252,2]
[388459618,1759177307580,-1612.61,0.00022252,2]
[388459619,1759177307609,-316.55,0.00022252,2]
[388459621,1759177308768,-213.66691994,0.00022251,2]
[388459622,1759177308793,-266.33308006,0.00022251,2]
[388459623,1759177308802,-163.45,0.00022252,2]
[388459624,1759177308811,-159.36691994,0.00022252,2]
[388459625,1759177308827,-320.63308006,0.00022252,2]
[388459626,1759177308836,-159.36691994,0.00022253,2]
[388459627,1759177308855,-203.31941477,0.00022253,2]
[388459628,1759177308864,-276.68058523,0.00022253,2]
[388459629,1759177308880,-203.31941477,0.00022253,2]
[388459630,1759177308889,-276.68058523,0.00022253,2]
[388459631,1759177308904,-309.74941477,0.00022253,2]
[388459632,1759177308914,-606.83,0.00022253,2]
[388459633,1759177308923,-43.39058523,0.00022253,2]
[388459634,1759177308938,-462.50941477,0.00022253,2]
[388459635,1759177308948,-480.0,0.00022253,2]
[388459636,1759177308958,-480.0,0.00022253,2]
[388459637,1759177308967,-190.10058523,0.00022253,2]
[388459638,1759177308991,-289.89941477,0.00022253,2]
[388459639,1759177309000,-190.10058523,0.00022253,2]
[388459640,1759177315258,-480.0,0.00021979,2]
[388459641,1759177315286,-1004.08,0.00021979,2]
[388459642,1759177315314,-480.0,0.00021981,2]
[388459643,1759177315342,-480.0,0.00022251,2]
[388459644,1759177315372,-480.0,0.00022252,2]
[388459645,1759177315400,-480.0,0.00022252,2]
[388459646,1759177315428,-480.0,0.00022252,2]
[388459647,1759177315457,-500.0,0.00022253,2]
[388459648,1759177315485,-296.74941477,0.00022253,2]
[388459649,1759177315515,-158.35117046,0.00022253,2]
[388459650,1759177315610,-321.64882954,0.00022253,2]
[388459651,1759177315638,-480.0,0.00022253,2]
[388459652,1759177315667,-480.0,0.00022253,2]
[388459653,1759177315697,-485.86,0.00022253,2]
[388459654,1759177315727,-679.41,0.00022253,2]
[388459655,1759177315756,-480.0,0.00022253,2]
[388459656,1759177315787,-480.0,0.00022253,2]
[388459657,1759177315815,-480.0,0.00022253,2]
[388459658,1759177315850,-480.0,0.00022253,2]
[388459659,1759177315878,-480.0,0.00022253,2]
[388459660,1759177316028,-1674.25,0.00022252,2]
[388459661,1759177316057,-480.0,0.00022253,2]
[388459662,1759177316086,-480.0,0.00022253,2]
[388459663,1759177316115,-480.0,0.00022253,2]
[388459664,1759177316143,-487.1,0.00022253,2]
[388459665,1759177316171,-480.0,0.00022253,2]
[388459666,1759177316199,-480.0,0.00022253,2]
[388459667,1759177316352,-397.31,0.00022253,2]
[388459668,1759177316473,-82.69,0.00022253,2]
[388459669,1759177316501,-1028.16,0.00022253,2]
[388459670,1759177316527,-480.0,0.00022253,2]
[388459671,1759177316556,-722.8,0.00022253,2]
[388459672,1759177316584,-480.0,0.00022253,2]
[388459673,1759177316613,-585.1,0.00022253,2]
[388459674,1759177316640,-494.56,0.00022253,2]
[388459675,1759177316667,-498.62920634,0.00022253,2]
[388459676,1759177316696,-557.67158732,0.00022253,2]
[388459677,1759177316814,-140.78841268,0.00022253,2]
[388459678,1759177316842,-538.14,0.00022253,2]
[388459679,1759177316870,-589.75,0.00022253,2]
[388459680,1759177316897,-477.44919641,0.00022253,2]
[388459681,1759177316925,-480.0,0.00022253,2]
[388459682,1759177316953,-523.21,0.00022253,2]
[388459683,1759177316981,-480.0,0.00022253,2]
[388459684,1759177317010,-1535.7,0.00022253,2]
[388459685,1759177317865,-480.0,0.00022253,2]
[388459686,1759177317873,-384.38878948,0.00022253,2]
[388459687,1759177317919,-95.61121052,0.00022253,2]
[388459688,1759177317928,-374.3235713,0.00022253,2]
[388459689,1759177325470,-621.89120068,0.00021979,2]
[388459690,1759177325501,-480.0,0.00021979,2]
[388459691,1759177325530,-334.25356472,0.00022,2]
[388459692,1759177325558,-480.0,0.00022251,2]
[388459693,1759177325587,-483.4339518,0.00022251,2]
[388459694,1759177325616,-394.31354082,0.00022251,2]
[388459695,1759177325646,-480.0,0.00022251,2]
[388459696,1759177325674,-480.0,0.00022251,2]
[388459697,1759177325708,-480.0,0.00022252,2]
[388459698,1759177325740,-480.0,0.00022252,2]
[388459699,1759177325949,-572.22548396,0.00022252,2]
[388459700,1759177325986,-26.12451604,0.00022252,2]
[388459701,1759177326018,-480.0,0.00022252,2]
[388459702,1759177326050,-300.0,0.00022252,2]
[388459703,1759177326081,-116.0964287,0.00022253,2]
[388459704,1759177326112,-480.0,0.00022253,2]
[388459705,1759177326144,-480.0,0.00022253,2]
[388459706,1759177326175,-480.0,0.00022253,2]
[388459707,1759177326204,-480.0,0.00022253,2]
[388459708,1759177326234,-480.0,0.00022253,2]
[388459709,1759177326263,-480.0,0.00022253,2]
[388459710,1759177326291,-480.0,0.00022253,2]
[388459711,1759177326319,-559.72,0.00022253,2]
[388459712,1759177326373,-480.0,0.00022253,2]
[388459713,1759177326404,-480.0,0.00022253,2]
[388459714,1759177326432,-1004.08,0.00022253,2]
[388459715,1759177326461,-480.0,0.00022253,2]
[388459716,1759177326491,-480.0,0.00022256,2]
[388459717,1759177326520,-480.0,0.00022256,2]
[388459718,1759177326551,-202.70282683,0.00022256,2]
[388459719,1759177326582,-480.0,0.00022257,2]
[388459720,1759177326613,-480.0,0.00022257,2]
[388459721,1759177326644,-386.44434634,0.00022257,2]
[388459722,1759177326780,-93.55565366,0.00022257,2]
[388459723,1759177326810,-480.0,0.00022257,2]
[388459724,1759177326841,-480.0,0.00022257,2]
[388459725,1759177326871,-480.0,0.00022257,2]
[388459726,1759177326901,-480.0,0.00022257,2]
[388459727,1759177326930,-480.0,0.00022257,2]
[388459728,1759177326960,-480.0,0.00022257,2]
[388459729,1759177326994,-480.0,0.00022257,2]
[388459730,1759177327027,-480.0,0.00022257,2]
[388459731,1759177327057,-480.0,0.00022257,2]
[388459732,1759177327088,-500.0,0.00022257,2]
[388459733,1759177327249,-480.0,0.00022258,2]
[388459734,1759177327279,-538.67,0.00022258,2]
[388459735,1759177327309,-1662.57,0.00022258,2]
[388459736,1759177327338,-480.0,0.00022258,2]
[388459737,1759177327367,-585.54,0.00022258,2]
[388459738,1759177327399,-480.0,0.00022258,2]
[388459739,1759177327439,-480.0,0.00022258,2]
[388459740,1759177327878,-1456.25,0.00022258,2]
[388459741,1759177327907,-480.0,0.00022258,2]
[388459742,1759177327936,-689.93,0.00022258,2]
[388459743,1759177327964,-480.0,0.00022258,2]
[388459744,1759177327993,-560.84,0.00022258,2]
[388459745,1759177328021,-480.0,0.00022258,2]
[388459746,1759177328050,-480.0,0.00022258,2]
[388459747,1759177328078,-265.97,0.00022258,2]
[388459748,1759177328248,-214.03,0.00022258,2]
[388459749,1759177328276,-480.0,0.00022258,2]
[388459750,1759177328304,-480.0,0.00022258,2]
[388459751,1759177328333,-480.0,0.00022258,2]
[388459752,1759177328364,-1673.79396676,0.00022402,2]
[388459753,1759177328440,-3344.36206648,0.00022402,2]
[388459754,1759177328470,-480.0,0.00022494,2]
[388459755,1759177328499,-694.91,0.00022494,2]
[388459756,1759177329416,-265.09,0.00022494,2]
[388459757,1759177329434,-782.63,0.00022494,2]
[388459758,1759177329443,-480.0,0.00022494,2]
[388459759,1759177329453,-2081.73206648,0.00022494,2]
[388459760,1759177329472,-480.0,0.00022494,2]
[388459761,1759177329495,-642.32793352,0.00022494,2]
[388459762,1759177329504,-52.58206648,0.00022494,2]
[388459763,1759177329522,-427.41793352,0.00022494,2]
[388459764,1759177329532,-534.04793352,0.00022494,2]
[388459765,1759177335321,-481.57,0.00021979,2]
[388459766,1759177335350,-480.0,0.00021979,2]
[388459767,1759177335379,-480.0,0.00022251,2]
[388459768,1759177335407,-480.0,0.00022251,2]
[388459769,1759177335436,-480.0,0.00022251,2]
[388459770,1759177335463,-684.56,0.00022251,2]
[388459771,1759177335490,-480.0,0.00022252,2]
[388459772,1759177335611,-3124.06,0.00022252,2]
[388459773,1759177335639,-481.57,0.00022253,2]
[388459774,1759177335668,-123.67206648,0.00022494,2]
[388459775,1759177335776,-3183.88,0.00022494,2]
[388459776,1759177335805,-509.81,0.00022494,2]
[388459777,1759177335835,-1258.35,0.00022494,2]
[388459778,1759177335956,-480.0,0.00022494,2]
[388459779,1759177335966,-5.35586704,0.00022494,2]
[388459780,1759177336010,-534.53,0.00022252,2]
[388459781,1759177336041,-2677.80413296,0.00022494,2]
[388459782,1759177336071,-480.0,0.00022494,2]
[388459783,1759177336103,-349.53,0.00022516,3]
[388459784,1759177336134,-699.1,0.00022516,3]
[388459785,1759177336165,-250.8,0.00022516,3]
[388459786,1759177336272,-95.93,0.00022517,3]
[388459787,1759177336306,-471.87,0.00022517,3]
[388459788,1759177336316,-62.66,0.00022517,3]
[388459789,1759177336332,-505.09,0.00022517,3]
[388459790,1759177336341,-850.98,0.00022517,10]
[388459791,1759177336351,-480.0,0.00022525,2]
[388459792,1759177336360,-480.0,0.00022525,2]
[388459793,1759177336369,-361.73413296,0.00022525,2]
[388459794,1759177336388,-28.80586704,0.00022525,2]
[388459795,1759177336397,-451.19413296,0.00022525,2]
[388459796,1759177336414,-349.53,0.00022525,2]
[388459797,1759177336430,-264.70586704,0.00022525,2]
[388459798,1759177336439,-434.39413296,0.00022525,2]
[388459799,1759177336460,-45.60586704,0.00022525,2]
[388459800,1759177336469,-205.19413296,0.00022525,2]
[388459801,1759177336495,-16.48173408,0.00022525,2]
[388459802,1759177365380,-483.12,0.00021979,2]
[388459803,1759177365411,-480.0,0.00021979,2]
[388459804,1759177365441,-519.3,0.00021979,2]
[388459805,1759177365472,-480.0,0.00021979,2]
[388459806,1759177365503,-480.0,0.00021981,2]
[388459807,1759177365533,-480.0,0.00021981,2]
[388459808,1759177365566,-534.86,0.00022251,2]
[388459809,1759177365596,-480.0,0.00022251,2]
[388459810,1759177365625,-480.0,0.00022251,2]
[388459811,1759177365655,-381.83,0.00022251,2]
[388459812,1759177365850,-401.79,0.00022251,2]
[388459813,1759177365886,-500.0,0.00022251,2]
[388459814,1759177365916,-500.0,0.00022251,2]
[388459815,1759177365947,-480.0,0.00022251,2]
[388459816,1759177365978,-480.0,0.00022251,2]
[388459817,1759177366017,-1290.11,0.00022251,2]
[388459818,1759177366056,-480.0,0.00022251,2]
[388459819,1759177366092,-480.0,0.00022252,2]
[388459820,1759177366124,-480.0,0.00022252,2]
[388459821,1759177366156,-139.79,0.00022252,2]
[388459822,1759177366425,-480.0,0.00021979,2]
[388459823,1759177366455,-340.21,0.00022252,2]
[388459824,1759177366484,-1230.11,0.00022252,2]
[388459825,1759177366513,-480.0,0.00022252,2]
[388459826,1759177366542,-500.0,0.00022252,2]
[388459827,1759177366570,-500.0,0.00022252,2]
[388459828,1759177366600,-480.0,0.00022252,2]
[388459829,1759177366631,-480.0,0.00022252,2]
[388459830,1759177366659,-480.0,0.00022252,2]
[388459831,1759177366794,-480.0,0.00022252,2]
[388459832,1759177366823,-602.91,0.00022252,2]
[388459833,1759177366853,-480.0,0.00022252,2]
[388459834,1759177366883,-483.12,0.00022253,2]
[388459835,1759177366913,-480.0,0.00022253,2]
[388459836,1759177366942,-519.3,0.00022253,2]
[388459837,1759177366972,-480.0,0.00022253,2]
[388459838,1759177366999,-480.0,0.00022255,2]
[388459839,1759177367028,-500.0,0.00022257,2]
[388459840,1759177367056,-489.35,0.00022493,2]
[388459841,1759177367200,-240.19001235,0.00022252,2]
[388459842,1759177367231,-480.0,0.00022253,2]
[388459843,1759177367261,-10.65,0.00022493,2]
[388459844,1759177367291,-1200.0,0.00022524,2]
[388459845,1759177367321,-258.32413296,0.00022525,2]
[388459846,1759177367350,-480.0,0.00022525,2]
[388459847,1759177367379,-480.0,0.00022525,2]
[388459848,1759177367407,-480.0,0.00022525,2]
[388459849,1759177367436,-474.85170938,0.00022525,2]
[388459850,1759177367481,-1791.97829062,0.00022525,2]
[388459851,1759177367511,-480.0,0.00022525,2]
[388459852,1759177367540,-480.0,0.00022525,2]
[388459853,1759177367568,-2116.55,0.00022525,2]
[388459854,1759177367646,-480.0,0.00022525,2]
[388459855,1759177367674,-480.0,0.00022525,2]
[388459856,1759177367706,-480.0,0.00022525,2]
[388459857,1759177367734,-480.0,0.00022525,2]
[388459858,1759177367768,-480.0,0.00022525,2]
[388459859,1759177367797,-857.24,0.00022525,2]
[388459860,1759177367825,-480.0,0.00022525,2]
[388459861,1759177367854,-906.71,0.00022525,2]
[388459862,1759177367883,-232.11,0.00022525,2]
[388459863,1759177369204,-94.78341876,0.00022251,2]
[388459864,1759177369221,-385.21658124,0.00022251,2]
[388459865,1759177369230,-247.89,0.00022525,2]
[388459866,1759177369239,-224.13341876,0.00022525,2]
[388459867,1759177369261,-255.86658124,0.00022525,2]
[388459868,1759177369270,-224.13341876,0.00022525,2]
[388459869,1759177369290,-255.86658124,0.00022525,2]
[388459870,1759177369300,-314.11,0.00022525,2]
[388459871,1759177369309,-336.73341876,0.00022525,2]
[388459872,1759177369329,-143.26658124,0.00022525,2]
[388459873,1759177369338,-336.73341876,0.00022525,2]
[388459874,1759177395573,-564.54,0.00021979,2]
[388459875,1759177395604,-1404.16,0.00021979,2]
[388459876,1759177395632,-500.0,0.00021981,2]
[388459877,1759177395659,-524.06509231,0.0002225,2]
[388459878,1759177395687,-930.4,0.00022251,2]
[388459879,1759177395720,-1048.12981538,0.00022251,2]
[388459880,1759177395825,-57.42018462,0.00022251,2]
[388459881,1759177395912,-628.52,0.00022251,2]
[388459882,1759177395943,-641.21,0.00022251,2]
[388459883,1759177395971,-480.0,0.00022251,2]
[388459884,1759177396000,-480.0,0.00022251,2]
[388459885,1759177396029,-480.0,0.00022251,2]
[388459886,1759177396058,-1445.3,0.00022251,2]
[388459887,1759177396085,-480.0,0.00022251,2]
[388459888,1759177396115,-249.95,0.00022251,2]
[388459889,1759177396222,-230.05,0.00022251,2]
[388459890,1759177396250,-480.0,0.00022252,2]
[388459891,1759177396280,-480.0,0.00022252,2]
[388459892,1759177396324,-653.59,0.00022252,2]
[388459893,1759177396357,-678.72,0.00022252,2]
[388459894,1759177396386,-480.0,0.00022252,2]
[388459895,1759177396416,-480.0,0.00022252,2]
[388459896,1759177396445,-480.0,0.00022252,2]
[388459897,1759177396574,-2918.56,0.00022252,2]
[388459898,1759177396670,-480.0,0.00022252,2]
[388459899,1759177396697,-480.0,0.00022252,2]
[388459900,1759177396732,-480.0,0.00022252,2]
[388459901,1759177396761,-480.0,0.00022252,2]
[388459902,1759177396863,-480.0,0.00022252,2]
[388459903,1759177396890,-480.0,0.00022252,2]
[388459904,1759177396918,-564.54,0.00022253,2]
[388459905,1759177396945,-1404.16,0.00022253,2]
[388459906,1759177396972,-699.025859,0.00022425,2]
[388459907,1759177396999,-177.53658124,0.00022525,2]
[388459908,1759177397026,-480.0,0.00022525,2]
[388459909,1759177397054,-534.86,0.00022525,2]
[388459910,1759177397230,-774.25,0.00022252,2]
[388459911,1759177397257,-480.0,0.00022525,2]
[388459912,1759177397284,-783.62,0.00022525,2]
[388459913,1759177397312,-684.56,0.00022525,2]
[388459914,1759177397340,-581.02689184,0.00022525,2]
[388459915,1759177397369,-156.81270952,0.00022525,2]
[388459916,1759177397399,-500.0,0.00022525,2]
[388459917,1759177397428,-198.82245676,0.00022525,2]
[388459918,1759177397459,-500.0,0.00022525,2]
[388459919,1759177397487,-181.82588376,0.00022525,2]
[388459920,1759177397998,-222.38961788,0.00022525,2]
[388459921,1759177398014,-95.78449836,0.00022525,2]
[388459922,1759177398022,-185.50668647,0.00022525,2]
[388459923,1759177398031,-403.26881517,0.00022525,2]
[388459924,1759177398091,-96.73118483,0.00022525,2]
[388459925,1759177398099,-484.29570701,0.00022525,2]
[388459926,1759177398147,-15.70429299,0.00022525,2]
[388459927,1759177398156,-141.10841653,0.00022525,2]
[388459928,1759177398175,-500.0,0.00022251,2]
[388459929,1759177398191,-64.41,0.00022251,2]
[388459930,1759177398200,-134.41245676,0.00022525,2]
[388459931,1759177398215,-224.47912671,0.00022525,2]
[388459932,1759177398224,-275.52087329,0.00022525,2]
[388459933,1759177398239,-224.47912671,0.00022525,2]
[388459934,1759177398249,-275.52087329,0.00022525,2]
[388459936,1759177415786,-480.0,0.00021979,2]
[388459937,1759177415815,-480.0,0.00021979,2]
[388459938,1759177415843,-480.0,0.00022251,2]
[388459939,1759177415872,-480.0,0.00022251,2]
[388459940,1759177415902,-485.91,0.00022251,2]
[388459941,1759177415932,-480.0,0.00022251,2]
[388459942,1759177415963,-480.0,0.00022252,2]
[388459943,1759177415993,-480.0,0.00022252,2]
[388459944,1759177416023,-1056.63,0.00022252,2]
[388459945,1759177416175,-194.93,0.00022252,2]
[388459946,1759177418662,-480.0,0.00021979,2]
[388459947,1759177418694,-480.0,0.00022252,2]
[388459948,1759177418738,-480.0,0.00022252,2]
[388459949,1759177418769,-480.0,0.00022252,2]
[388459950,1759177418798,-480.0,0.00022252,2]
[388459951,1759177418830,-480.0,0.00022252,2]
[388459952,1759177418862,-480.0,0.00022253,2]
[388459953,1759177418892,-480.0,0.00022253,2]
[388459954,1759177418922,-480.0,0.00022253,2]
[388459955,1759177418954,-480.0,0.00022524,2]
[388459956,1759177419174,-400.01,0.00022525,2]
[388459957,1759177419205,-480.0,0.00022251,2]
[388459958,1759177419215,-9520.01,0.00022525,2]
[388459959,1759177419268,-10000.01,0.00022525,2]
[388459960,1759177419354,-10000.01,0.00022525,2]
[388459961,1759177419406,-10000.01,0.00022525,2]
[388459962,1759177435533,-214.531751,0.00021455,2]
[388459963,1759177435561,-480.0,0.00021979,2]
[388459964,1759177435589,-755.78,0.00022251,2]
[388459965,1759177435616,-822.9,0.00022251,2]
[388459966,1759177435644,-480.0,0.00022251,2]
[388459967,1759177435672,-827.67,0.00022251,2]
[388459968,1759177435698,-480.0,0.00022251,2]
[388459969,1759177435729,-762.79,0.00022251,2]
[388459970,1759177435851,-480.0,0.00022252,2]
[388459971,1759177435880,-1287.97,0.00022252,2]
[388459972,1759177435907,-480.0,0.00022252,2]
[388459973,1759177435935,-454.66321748,0.00022252,2]
[388459974,1759177435964,-2133.99356504,0.00022252,2]
[388459975,1759177436072,-480.0,0.00022251,2]
[388459976,1759177436103,-326.75643496,0.00022252,2]
[388459977,1759177436131,-604.50982546,0.00022252,2]
[388459978,1759177436158,-390.01336953,0.00022252,2]
[388459979,1759177436186,-480.0,0.00022253,2]
[388459980,1759177436216,-189.62,0.00022516,10]
[388459981,1759177436246,-360.75,0.00022517,3]
[388459982,1759177436521,-129.05293296,0.00022525,2]
[388459983,1759177436541,-189.62,0.00022525,2]
[388459984,1759177436556,-360.75,0.00022525,2]
[388459985,1759177436571,-4336.7107401,0.00022525,2]
[388459986,1759177436591,-5063.81632694,0.00022525,2]
[388459987,1759177436600,-224.47912671,0.00022525,2]
[388459988,1759177436609,-430.45204947,0.00022525,2]
[388459989,1759177436618,-517.2145924,0.00022525,2]
[388459990,1759177436627,-500.0,0.00022525,2]
[388459991,1759177436635,-480.0,0.00022525,2]
[388459992,1759177436645,-480.0,0.00022525,2]
[388459993,1759177436654,-1290.11,0.00022525,2]
[388459994,1759177436663,-480.0,0.00022525,2]
[388459995,1759177436671,-480.0,0.00022525,2]
[388459996,1759177436680,-53.93790448,0.00022525,2]
[388459997,1759177436704,-876.46209552,0.00022525,2]
[388459998,1759177436713,-500.0,0.00022525,2]
[388459999,1759177436725,-500.0,0.00022525,2]
[388460000,1759177436734,-500.0,0.00022525,2]
[388460001,1759177436743,-500.0,0.00022525,2]
[388460002,1759177436752,-500.0,0.00022525,2]
[388460003,1759177436761,-500.0,0.00022525,2]
[388460004,1759177436770,-500.0,0.00022525,2]
[388460005,1759177436779,-500.0,0.00022525,2]
[388460006,1759177436788,-500.0,0.00022525,2]
[388460007,1759177436801,-500.0,0.00022525,2]
[388460008,1759177436809,-500.0,0.00022525,2]
[388460009,1759177436819,-500.0,0.00022525,2]
[388460010,1759177436827,-420.80068527,0.00022525,2]
[388460011,1759177436836,-500.0,0.00022525,2]
[388460012,1759177436845,-1105.55,0.00022525,2]
[388460013,1759177436854,-628.52,0.00022525,2]
[388460015,1759177436862,-468.67721921,0.00022525,2]
[388460016,1759177445661,-545.16,0.00021979,2]
[388460017,1759177445693,-480.0,0.00021979,2]
[388460018,1759177455846,-159.10982068,0.000221,2]
[388460019,1759177455868,-44.46831499,0.00022251,2]
[388460021,1759177459831,-155.31522876,0.00022251,2]
[388460057,1759177656515,181.033755,0.00021252,2]
[388460064,1759177746491,-611.64762659,0.0002215,2]
[388460065,1759177746520,-159.10982067,0.00022152,2]
[388460066,1759177746549,-500.0,0.000222,2]
[388460067,1759177746585,-293.13,0.0002224,10]
[388460068,1759177746616,-300.0,0.00022248,2]
[388460069,1759177746644,-1200.0,0.00022249,2]
[388460070,1759177746673,-500.0,0.00022249,2]
[388460071,1759177746701,-266.74093991,0.00022249,2]
[388460072,1759177746731,-224.13495471,0.00022249,2]
[388460073,1759177746761,-500.0,0.00022249,2]
[388460074,1759177746788,-390.48331624,0.00022249,2]
[388460075,1759177747112,-109.51668376,0.00022249,2]
[388460076,1759177747141,-500.0,0.00022249,2]
[388460077,1759177747171,-500.0,0.00022249,2]
[388460078,1759177747199,-500.0,0.00022249,2]
[388460079,1759177747229,-500.0,0.00022249,2]
[388460080,1759177747257,-575.15177662,0.00022249,2]
[388460081,1759177747285,-500.0,0.00022249,2]
[388460082,1759177747315,-500.0,0.00022249,2]
[388460083,1759177747344,-500.0,0.00022249,2]
[388460084,1759177747371,-500.0,0.00022249,2]
[388460085,1759177747398,-130.67307924,0.00022249,2]
[388460086,1759177747435,-369.32692076,0.00022249,2]
[388460087,1759177747473,-500.0,0.00022249,2]
[388460088,1759177747500,-227.4012137,0.00022249,2]
[388460089,1759177747527,-500.0,0.00022249,2]
[388460090,1759177747556,-500.0,0.00022249,2]
[388460091,1759177747584,-500.0,0.00022249,2]
[388460092,1759177747611,-500.0,0.00022249,2]
[388460093,1759177747639,-500.0,0.00022249,2]
[388460094,1759177747668,-500.0,0.00022249,2]
[388460095,1759177747699,-500.0,0.00022249,2]
[388460096,1759177747727,-306.55373108,0.00022249,2]
[388460097,1759177747774,-193.44626892,0.00022249,2]
[388460098,1759177747802,-500.0,0.00022249,2]
[388460099,1759177747831,-500.0,0.00022249,2]
[388460100,1759177747865,-500.0,0.00022249,2]
[388460101,1759177747894,-592.18962663,0.00022249,2]
[388460102,1759177747923,-500.0,0.00022249,2]
[388460103,1759177747952,-500.0,0.00022249,2]
[388460104,1759177747980,-500.0,0.00022249,2]
[388460105,1759177748010,-500.0,0.00022249,2]
[388460106,1759177748039,-500.0,0.00022249,2]
[388460107,1759177748343,-500.0,0.00022249,2]
[388460108,1759177748373,-500.0,0.00022249,2]
[388460109,1759177748405,-500.0,0.00022249,2]
[388460110,1759177748436,-500.0,0.00022249,2]
[388460111,1759177748467,-500.0,0.00022249,2]
[388460112,1759177748497,-500.0,0.00022249,2]
[388460113,1759177748525,-500.0,0.00022249,2]
[388460114,1759177748554,-500.0,0.00022249,2]
[388460115,1759177748584,-500.0,0.00022249,2]
[388460116,1759177748613,-500.0,0.00022249,2]
[388460117,1759177748776,-500.0,0.00022249,2]
[388460118,1759177748806,-500.0,0.00022249,2]